bitfinex/quotes_SOLUSD_20260228
["timestamp","ask_amount","ask_price","bid_price","bid_amount"]
[1772287457431,4.45938884,80.719,80.68,12.07463109]
[1772287457637,12.07463109,80.73,80.69,12.07463109]
[1772287457843,12.07463109,80.73,80.681,4.30274728]
[1772287457844,4.45938884,80.729,80.681,4.30274728]
[1772287458016,4.45938884,80.729,80.657,43.39360767]
[1772287458017,4.45938884,80.719,80.69,12.07463109]
[1772287458337,12.38881042,80.718,80.69,12.07463109]
[1772287458835,12.38881042,80.718,80.68,12.07463109]
[1772287459347,16.53401993,80.7,80.66,12.07463109]
[1772287459545,4.45938884,80.699,80.66,12.07463109]
[1772287459720,3.69383402,80.717,80.615,49.61845128]
[1772287459721,12.07463109,80.67,80.625,4.30274728]
[1772287460040,12.07463109,80.69,80.65,12.07463109]
[1772287460241,4.45938884,80.691,80.661,12.39756511]
[1772287460620,12.39310943,80.69,80.66,12.07463109]
[1772287461141,4.45938884,80.691,80.66,16.37737837]
[1772287461433,12.39298173,80.691,80.66,12.07463109]
[1772287461640,4.45938884,80.699,80.66,12.07463109]
[1772287461833,4.45938884,80.689,80.651,61.5]
[1772287462538,43.37104548,80.699,80.651,61.5]
[1772287462539,12.39341661,80.688,80.66,12.07463109]
[1772287462916,12.39188083,80.698,80.67,12.07463109]
[1772287463237,12.39034544,80.708,80.67,12.07463109]
[1772287463534,4.45938884,80.713,80.68,12.07463109]
[1772287463736,12.38865694,80.719,80.68,12.07463109]
[1772287463941,30.96465124,80.738,80.7,12.07463109]
[1772287464242,12.07463109,80.73,80.691,4.41515647]
[1772287464440,43.3549282,80.729,80.691,4.41515647]
[1772287465046,12.07463109,80.72,80.692,61.5]
[1772287465335,12.07463109,80.71,80.681,61.5]
[1772287465716,241.54888576,80.729,80.711,53.11992937]
[1772287465919,0.23548524,80.715,80.629,4.41515647]
[1772287466135,0.23548524,80.715,80.609,31.01370438]
[1772287466136,12.07463109,80.67,80.631,4.41515647]
[1772287466342,43.38717474,80.669,80.631,4.41515647]
[1772287466519,43.38717474,80.669,80.633,4.41515647]
[1772287467736,43.38717474,80.669,80.6,100.93142082]
[1772287467737,0.23548524,80.668,80.601,4.41515647]
[1772287467937,12.07463109,80.66,80.631,4.41515647]
[1772287468139,43.38717474,80.669,80.631,4.41515647]
[1772287468842,12.07463109,80.66,80.631,4.41515647]
[1772287469041,43.38717474,80.669,80.633,4.41515647]
[1772287471038,12.39479914,80.679,80.65,12.07463109]
[1772287471248,12.39479914,80.679,80.651,4.41515647]
[1772287471552,49.56454264,80.703,80.633,12.4017565]
[1772287471553,43.37265787,80.696,80.661,4.41515647]
[1772287472221,12.07463109,80.69,80.65,12.07463109]
[1772287472552,3.69383402,80.677,80.638,4.41515647]
[1772287472756,12.07463109,80.67,80.64,4.41515647]
[1772287473053,12.39526005,80.676,80.641,4.41515647]
[1772287473846,12.07463109,80.7,80.661,4.41515647]
[1772287474161,12.07463109,80.7,80.639,43.40331601]
[1772287474162,3.69383402,80.707,80.671,4.41515647]
[1772287474464,12.07463109,80.7,80.671,4.41515647]
[1772287474652,12.07463109,80.7,80.66,12.07463109]
[1772287474962,12.3900384,80.71,80.68,12.07463109]
[1772287475154,24.46466949,80.71,80.67,12.07463109]
[1772287475459,43.36513442,80.71,80.68,12.07463109]
[1772287475656,12.3900384,80.71,80.68,12.07463109]
[1772287475959,12.38865694,80.719,80.69,12.07463109]
[1772287476134,12.38620177,80.735,80.7,12.07463109]
[1772287476335,12.38620177,80.735,80.69,12.07463109]
[1772287476336,30.96780586,80.729,80.69,12.07463109]
[1772287476760,43.3549282,80.729,80.69,12.07463109]
[1772287476951,3.69383402,80.726,80.686,4.41515647]
[1772287477156,3.69383402,80.726,80.69,12.07463109]
[1772287477663,12.07463109,80.72,80.686,4.41515647]
[1772287478361,12.07463109,80.71,80.674,4.41515647]
[1772287478659,43.37104548,80.699,80.66,12.07463109]
[1772287478862,43.37104548,80.699,80.64,4.41515647]
[1772287478863,4.45938884,80.679,80.64,4.41515647]
[1772287479047,12.07463109,80.67,80.621,12.40371615]
[1772287479245,16.53401993,80.67,80.63,12.07463109]
[1772287479857,4.45938884,80.698,80.66,12.07463109]
[1772287480247,12.07463109,80.69,80.65,12.07463109]
[1772287480449,4.45938884,80.689,80.65,12.07463109]
[1772287480645,12.39341661,80.688,80.65,24.47385126]
[1772287480844,12.39341661,80.688,80.65,12.07463109]
[1772287481062,43.37695815,80.688,80.65,24.47388607]
[1772287481254,4.26452786,80.669,80.623,4.48578471]
[1772287481568,3.69383402,80.685,80.65,12.07463109]
[1772287481864,16.33915895,80.68,80.641,4.48578471]
[1772287482064,4.26452786,80.679,80.641,4.48578471]
[1772287482444,12.07463109,80.67,80.63,12.07463109]
[1772287482851,47.6517026,80.669,80.63,12.07463109]
[1772287483045,3.69383402,80.657,80.615,4.48578471]
[1772287483245,3.69383402,80.657,80.587,49.6353848]
[1772287483246,3.69383402,80.657,80.621,4.48578471]
[1772287483663,16.19049527,80.66,80.621,4.48578471]
[1772287483859,4.11586418,80.659,80.621,4.48578471]
[1772287484062,4.11586418,80.649,80.612,55.84]
[1772287484344,12.07463109,80.64,80.604,4.20016083]
[1772287484553,4.11586418,80.649,80.61,12.07463109]
[1772287484740,12.07463109,80.64,80.604,4.20016083]
[1772287485141,1e-08,80.64,80.604,4.20016083]
[1772287485548,3.69383402,80.661,80.571,61.10204549]
[1772287485749,16.19049527,80.59,80.465,37.16]
[1772287485946,5.36086188,80.657,80.421,55.84]
[1772287485947,12.07463109,80.54,80.5,444.38494475]
[1772287486147,12.07463109,80.56,80.51,12.07463109]
[1772287486449,12.07463109,80.55,80.51,12.07463109]
[1772287486667,3.69383402,80.557,80.51,12.07463109]
[1772287486871,210.79258009,80.648,80.531,4.20016083]
[1772287486872,31.0223892,80.587,80.531,4.20016083]
[1772287487049,12.07463109,80.55,80.501,4.20016083]
[1772287487250,12.07463109,80.57,80.521,4.20016083]
[1772287487449,3.69383402,80.558,80.511,4.20016083]
[1772287487664,31.0223892,80.587,80.5,450.36415834]
[1772287487665,12.07463109,80.54,80.5,437.94180861]
[1772287487977,12.07463109,80.55,80.501,4.20016083]
[1772287488168,3.69383402,80.547,80.5,437.94180861]
[1772287488369,4.11586418,80.547,80.5,450.0164397]
[1772287488692,4.11586418,80.561,80.53,12.07463109]
[1772287488855,7.8096982,80.575,80.54,12.07463109]
[1772287489181,12.41095142,80.574,80.505,3.69383402]
[1772287489392,12.07463109,80.59,80.505,3.69383402]
[1772287489393,4.11586418,80.587,80.51,5.64518502]
[1772287489557,4.11586418,80.579,80.54,12.07463109]
[1772287489764,4.11586418,80.596,80.56,12.07463109]
[1772287490063,3.69383402,80.594,80.56,12.07463109]
[1772287490379,12.40637843,80.604,80.57,12.07463109]
[1772287490756,3.69383402,80.601,80.57,12.07463109]
[1772287491059,12.40156259,80.635,80.591,4.20016083]
[1772287491278,12.40029601,80.644,80.601,4.20016083]
[1772287491477,12.40029601,80.644,80.61,12.07463109]
[1772287491683,3.69383402,80.641,80.61,12.07463109]
[1772287491875,12.40029601,80.644,80.61,12.07463109]
[1772287492383,3.69383402,80.641,80.61,12.07463109]
[1772287492678,12.07463109,80.66,80.62,12.07463109]
[1772287492870,4.11586418,80.661,80.64,12.07463109]
[1772287493073,3.69383402,80.667,80.65,12.07463109]
[1772287493277,3.69383402,80.667,80.64,16.27479192]
[1772287493460,4.11586418,80.686,80.65,12.07463109]
[1772287493862,3.69383402,80.684,80.65,12.07463109]
[1772287494076,4.11586418,80.669,80.63,12.07463109]
[1772287494272,12.07463109,80.66,80.62,12.07463109]
[1772287494672,12.07463109,80.65,80.61,12.07463109]
[1772287494877,12.07463109,80.65,80.601,4.20016083]
[1772287495361,12.39940978,80.649,80.602,4.20016083]
[1772287495587,12.07463109,80.64,80.602,4.20016083]
[1772287496363,12.07463109,80.62,80.58,12.07463109]
[1772287496568,3.69383402,80.638,80.6,12.07463109]
[1772287496790,12.07463109,80.63,80.591,4.20016083]
[1772287497392,12.07463109,80.63,80.592,12.40817947]
[1772287497698,12.40248545,80.629,80.6,12.07463109]
[1772287497889,12.40248545,80.629,80.593,4.20016083]
[1772287498086,12.07463109,80.65,80.611,4.20016083]
[1772287498678,3.69383402,80.651,80.62,12.07463109]
[1772287498990,16.19049527,80.65,80.611,4.20016083]
[1772287499388,16.18555558,80.65,80.611,4.20016083]
[1772287499591,12.39940978,80.649,80.611,4.20016083]
[1772287499786,43.39793425,80.649,80.611,4.20016083]
[1772287500178,43.39793425,80.649,80.613,4.20016083]
[1772287500584,4.11586418,80.648,80.597,12.40727937]
[1772287500791,4.11586418,80.648,80.598,4.20016083]
[1772287501685,12.39971728,80.647,80.6,4.20016083]
[1772287502401,12.39556734,80.674,80.602,4.20016083]
[1772287502584,74.24563574,80.813,80.66,12.0696914]
[1772287502585,4.11586418,80.686,80.66,12.0696914]
[1772287502784,4.11586418,80.686,80.603,165.32497175]
[1772287502785,4.11586418,80.714,80.68,12.0696914]
[1772287502993,4.11586418,80.714,80.625,5.36086188]
[1772287502994,3.69383402,80.697,80.69,12.0696914]
[1772287503185,12.38896391,80.717,80.69,12.0696914]
[1772287503581,0.2,80.73,80.711,12.38988489]
[1772287503803,0.2,80.73,80.71,16.26985223]
[1772287503988,4.11586418,80.768,80.74,12.0696914]
[1772287504503,12.38129434,80.767,80.74,12.0696914]
[1772287504703,4.11586418,80.769,80.731,4.20016083]
[1772287505010,43.32929335,80.777,80.721,4.20016083]
[1772287505011,4.11586418,80.776,80.721,4.20016083]
[1772287505393,12.37988944,80.777,80.75,11.60306835]
[1772287505593,4.11586418,80.787,80.741,4.20016083]
[1772287505804,4.11586418,80.787,80.696,49.56842923]
[1772287505805,4.11586418,80.787,80.743,4.20016083]
[1772287506301,4.11586418,80.784,80.75,19.29511726]
[1772287506700,4.11586418,80.784,80.743,4.20016083]
[1772287506895,4.11586418,80.784,80.75,19.29511726]
[1772287507504,3.99164418,80.784,80.75,19.29511726]
[1772287507701,1044.55775627,81.3,80.75,19.29511726]
[1772287507702,19.29511726,80.8,80.761,4.20016083]
[1772287507899,12.37485923,80.809,80.77,19.29511726]
[1772287508104,3.69383402,80.806,80.77,19.29511726]
[1772287508587,43.31200731,80.809,80.76,19.29511726]
[1772287508787,3.69383402,80.806,80.76,19.29511726]
[1772287509103,3.69383402,80.806,80.77,19.29511726]
[1772287509487,4.11586418,80.805,80.758,4.20016083]
[1772287509697,3.69383402,80.801,80.77,19.29511726]
[1772287510283,0.2,80.81,80.78,19.29511726]
[1772287510487,0.2,80.81,80.781,4.20016083]
[1772287510989,0.2,80.81,80.79,19.29511726]
[1772287511199,4.16861104,80.838,80.8,19.29511726]
[1772287511505,19.29511726,80.83,80.79,19.29511726]
[1772287511709,4.16861104,80.829,80.78,19.29511726]
[1772287511909,43.30182609,80.828,80.79,23.56150391]
[1772287512302,3.69383402,80.825,80.79,23.56150391]
[1772287512486,4.16861104,80.824,80.78,19.29511726]
[1772287513088,3.69383402,80.825,80.764,4.26638665]
[1772287513089,4.16861104,80.809,80.764,4.26638665]
[1772287513304,4.16861104,80.806,80.764,4.26638665]
[1772287513607,4.16861104,80.806,80.77,19.29511726]
[1772287514007,303.11278266,80.828,80.752,4.26638665]
[1772287514008,4.16861104,80.789,80.752,4.26638665]
[1772287515198,3.69383402,80.797,80.76,19.29511726]
[1772287515401,4.16861104,80.796,80.752,4.26638665]
[1772287515813,4.16861104,80.786,80.74,23.56150391]
[1772287516015,4.16861104,80.779,80.74,23.56150391]
[1772287516193,4.16861104,80.779,80.74,4.26638665]
[1772287516395,4.16861104,80.779,80.75,19.29511726]
[1772287516596,4.16861104,80.779,80.731,4.26638665]
[1772287516911,3.69383402,80.782,80.741,4.26638665]
[1772287517115,12.37715671,80.794,80.761,4.26638665]
[1772287517407,49.48216054,80.838,80.77,19.29511726]
[1772287517408,4.16861104,80.805,80.77,19.29511726]
[1772287517805,4.16861104,80.799,80.76,19.29511726]
[1772287518009,4.16861104,80.794,80.75,19.29511726]
[1772287518199,7.86244506,80.792,80.75,19.29511726]
[1772287518600,3.69383402,80.787,80.729,4.26638665]
[1772287518826,4.16861104,80.782,80.741,4.26638665]
[1772287519215,19.29511726,80.78,80.741,4.26638665]
[1772287519416,4.16861104,80.782,80.741,4.26638665]
[1772287520120,4.16861104,80.779,80.74,19.29511726]
[1772287520295,4.16861104,80.779,80.731,4.26638665]
[1772287520622,4.16861104,80.779,80.74,19.29511726]
[1772287520802,2.16861104,80.779,80.74,19.29511726]
[1772287521515,19.29511726,80.77,80.741,61.5]
[1772287521718,3.69383402,80.777,80.74,19.29511726]
[1772287521921,3.69383402,80.777,80.74,23.56150391]
[1772287522239,3.69383402,80.773,80.74,23.56150391]
[1772287522406,3.69383402,80.797,80.76,19.29511726]
[1772287522600,19.29511726,80.8,80.76,19.29511726]
[1772287522802,4.16861104,80.799,80.76,19.29511726]
[1772287523001,4.16861104,80.789,80.74,31.6805194]
[1772287523198,4.16861104,80.789,80.702,49.56450955]
[1772287523199,19.29511726,80.79,80.75,19.29511726]
[1772287523410,142.60650227,80.811,80.751,61.83268686]
[1772287523614,19.29511726,80.79,80.753,4.26638665]
[1772287523815,19.29511726,80.8,80.755,4.26638665]
[1772287524205,19.29511726,80.81,80.761,4.26638665]
[1772287524519,19.29511726,80.8,80.763,4.26638665]
[1772287524905,43.31093538,80.811,80.771,4.26638665]
[1772287525104,3.69383402,80.807,80.771,4.26638665]
[1772287525310,43.31093538,80.811,80.771,4.26638665]
[1772287526116,30.93638242,80.811,80.771,4.26638665]
[1772287526318,2.31080329,80.799,80.758,4.26638665]
[1772287526517,3.69383402,80.807,80.758,4.26638665]
[1772287526727,12.0240579,80.8,80.758,4.26638665]
[1772287527022,3.69383402,80.807,80.759,4.26638665]
[1772287528233,3.69383402,80.803,80.759,4.26638665]
[1772287528616,3.69383402,80.797,80.759,4.26638665]
[1772287528833,6.00463731,80.797,80.759,4.26638665]
[1772287529432,6.00463731,80.797,80.709,49.56038567]
[1772287529433,2.31080329,80.789,80.747,4.26638665]
[1772287529618,12.0240579,80.79,80.751,4.26638665]
[1772287529809,2.31080329,80.801,80.751,4.26638665]
[1772287529810,15.71789192,80.8,80.751,4.26638665]
[1772287530016,18.02869521,80.8,80.751,4.26638665]
[1772287530231,18.02869521,80.8,80.753,4.26638665]
[1772287530731,2.31080329,80.799,80.753,4.26638665]
[1772287530930,2.31080329,80.799,80.751,61.5]
[1772287530931,2.31080329,80.799,80.761,4.26638665]
[1772287531237,12.0240579,80.79,80.75,4.26638665]
[1772287531537,3.69383402,80.787,80.75,4.26638665]
[1772287531738,2.31080329,80.786,80.739,4.26638665]
[1772287531935,14.33486119,80.77,80.723,4.26638665]
[1772287532438,14.33486119,80.76,80.723,4.26638665]
[1772287532613,12.0240579,80.76,80.723,4.26638665]
[1772287533220,39.00011141,80.769,80.723,12.3878926]
[1772287533435,11.14288897,80.769,80.741,4.26638665]
[1772287533736,4.16861104,80.768,80.73,12.0240579]
[1772287534521,4.16861104,80.769,80.73,12.0240579]
[1772287534722,4.16861104,80.769,80.72,12.0240579]
[1772287534934,4.16861104,80.769,80.642,49.60144925]
[1772287534935,12.0240579,80.73,80.69,12.0240579]
[1772287535132,12.0240579,80.73,80.68,12.0240579]
[1772287535438,12.0240579,80.73,80.69,12.0240579]
[1772287535624,4.16861104,80.729,80.655,4.26638665]
[1772287535833,12.0240579,80.72,80.681,4.26638665]
[1772287536145,4.16861104,80.699,80.601,49.62679769]
[1772287536364,4.16861104,80.699,80.65,12.0240579]
[1772287536641,12.0240579,80.66,80.62,12.0240579]
[1772287536819,3.69383402,80.695,80.63,12.0240579]
[1772287536820,12.0240579,80.67,80.63,12.0240579]
[1772287537338,12.0240579,80.67,80.62,12.0240579]
[1772287537641,12.0240579,80.69,80.64,12.0240579]
[1772287537842,12.0240579,80.69,80.65,12.0240579]
[1772287538224,12.0240579,80.69,80.651,4.26638665]
[1772287538742,39.0387785,80.689,80.651,4.26638665]
[1772287538937,39.0387785,80.689,80.63,12.0240579]
[1772287538938,12.0240579,80.67,80.63,12.0240579]
[1772287539235,12.0240579,80.66,80.62,12.0240579]
[1772287539740,12.0240579,80.71,80.65,12.0240579]
[1772287539920,4.5,80.728,80.68,12.0240579]
[1772287539921,11.15158724,80.706,80.68,12.0240579]
[1772287540127,4.5,80.728,80.69,12.0240579]
[1772287540332,12.6859234,80.707,80.67,12.0240579]
[1772287540547,4.5,80.706,80.67,12.0240579]
[1772287540851,12.0240579,80.68,80.64,12.0240579]
[1772287541552,12.0240579,80.67,80.63,12.0240579]
[1772287542034,43.53926233,80.688,80.63,12.0240579]
[1772287542035,12.0240579,80.68,80.63,12.0240579]
[1772287542236,12.0240579,80.68,80.64,12.0240579]
[1772287542449,12.0240579,80.67,80.628,12.40263928]
[1772287542751,12.39633564,80.669,80.631,12.40217782]
[1772287543140,12.0240579,80.66,80.622,12.40355653]
[1772287543450,16.89633564,80.669,80.63,12.0240579]
[1772287544142,12.0240579,80.65,80.616,55.78]
[1772287544440,12.0240579,80.66,80.617,12.40433159]
[1772287544642,12.0240579,80.66,80.62,12.0240579]
[1772287544845,12.39787252,80.659,80.621,61.5]
[1772287545045,43.39255383,80.659,80.621,61.5]
[1772287545228,12.0240579,80.65,80.621,61.5]
[1772287545427,12.0240579,80.65,80.622,61.5]
[1772287545641,43.39255383,80.659,80.622,61.5]
[1772287545948,12.0240579,80.65,80.616,55.78]
[1772287546146,12.0240579,80.64,80.616,55.78]
[1772287546348,5.44561932,80.639,80.6,12.0240579]
[1772287546543,5.44561932,80.639,80.6,73.5240579]
[1772287546945,12.40110121,80.638,80.601,12.40679396]
[1772287547144,4.5,80.629,80.602,61.5]
[1772287547345,4.5,80.629,80.591,61.5]
[1772287547684,4.5,80.664,80.594,3.69383402]
[1772287547965,1.53503084,80.674,80.596,0.28432314]
[1772287547966,12.39725772,80.663,80.596,0.28432314]
[1772287548570,12.39725772,80.663,80.601,9.33901904]
[1772287548863,4.5,80.657,80.62,12.0240579]
[1772287549164,12.0240579,80.66,80.622,4.30774061]
[1772287550068,12.0240579,80.64,80.601,12.40679396]
[1772287550250,3.69383402,80.67,80.602,145.99536547]
[1772287550446,12.0240579,80.64,80.604,4.30774061]
[1772287550848,12.0240579,80.64,80.605,12.40617827]
[1772287551175,3.69383402,80.669,80.606,145.99536547]
[1772287551347,12.0240579,80.63,80.607,145.99536547]
[1772287551543,12.0240579,80.63,80.608,84.49536547]
[1772287552166,12.0240579,80.63,80.59,12.0240579]
[1772287552167,12.0240579,80.65,80.611,4.30774061]
[1772287552464,4.34004122,80.677,80.631,4.30774061]
[1772287552647,12.0240579,80.67,80.631,4.30774061]
[1772287552848,12.39633564,80.669,80.632,4.30774061]
[1772287553246,12.0240579,80.66,80.621,4.30774061]
[1772287553459,12.0240579,80.64,80.61,4.30774061]
[1772287554171,12.0240579,80.65,80.611,4.30774061]
[1772287554464,4.34004122,80.65,80.611,4.30774061]
[1772287554663,16.36409912,80.65,80.611,4.30774061]
[1772287554861,12.0240579,80.64,80.611,4.30774061]
[1772287555060,12.40094743,80.639,80.611,4.30774061]
[1772287555259,43.40331601,80.639,80.611,4.30774061]
[1772287555570,12.40094743,80.639,80.611,4.30774061]
[1772287555950,12.40094743,80.639,80.599,31.01761999]
[1772287555951,12.40023423,80.644,80.613,4.30774061]
[1772287556158,12.39510641,80.677,80.631,4.30774061]
[1772287556355,12.0240579,80.67,80.64,4.30774061]
[1772287557278,12.39633564,80.669,80.64,4.30774061]
[1772287557770,12.0240579,80.67,80.642,4.30774061]
[1772287558353,12.0240579,80.67,80.631,16.70981627]
[1772287558558,12.0240579,80.67,80.632,4.30774061]
[1772287559269,12.39633564,80.669,80.634,4.30774061]
[1772287559757,12.0240579,80.7,80.661,4.30774061]
[1772287559958,43.37104548,80.699,80.661,4.30774061]
[1772287560672,12.39172728,80.699,80.661,4.30774061]
[1772287560869,12.0240579,80.69,80.651,4.30774061]
[1772287561178,30.97597382,80.708,80.671,4.30774061]
[1772287561364,30.97597382,80.708,80.672,16.70361526]
[1772287561972,12.05144699,80.7,80.66,16.3591876]
[1772287562175,12.05144699,80.7,80.662,4.30774061]
[1772287562473,4.34004122,80.707,80.67,12.05144699]
[1772287562659,4.34004122,80.707,80.671,61.5]
[1772287562859,12.38950526,80.714,80.69,12.05144699]
[1772287563380,1.53426742,80.733,80.7,12.05144699]
[1772287563581,12.05144699,80.72,80.681,4.30774061]
[1772287563886,4.34004122,80.719,80.682,4.30774061]
[1772287564072,4.34004122,80.709,80.671,12.39590898]
[1772287564882,4.34004122,80.709,80.68,12.05144699]
[1772287565063,4.34004122,80.719,80.68,12.05144699]
[1772287565264,12.39019192,80.709,80.673,12.39572099]
[1772287565582,43.36567173,80.709,80.674,4.30774061]
[1772287565963,12.39019192,80.709,80.681,4.30774061]
[1772287566879,4.34004122,80.708,80.67,12.05144699]
[1772287567065,12.39019192,80.709,80.68,16.3591876]
[1772287567265,4.34004122,80.719,80.68,16.3591876]
[1772287567266,12.38881042,80.718,80.681,12.39449188]
[1772287567581,4.34004122,80.754,80.711,4.30774061]
[1772287567876,4.34004122,80.754,80.682,61.5]
[1772287567877,12.38666204,80.732,80.7,16.3591876]
[1772287568257,4.34004122,80.709,80.639,55.84]
[1772287568455,4.34004122,80.699,80.651,4.30774061]
[1772287568677,4.34004122,80.699,80.661,4.30774061]
[1772287568870,3.69383402,80.72,80.65,12.05144699]
[1772287568871,4.34004122,80.689,80.65,12.05144699]
[1772287569159,12.05144699,80.67,80.64,4.30774061]
[1772287569476,4.34004122,80.677,80.64,16.3591876]
[1772287569665,12.05144699,80.67,80.64,4.30774061]
[1772287569986,12.05144699,80.67,80.639,55.84]
[1772287570225,4.34004122,80.669,80.639,55.84]
[1772287571084,12.05144699,80.67,80.639,59.99783457]
[1772287571293,12.39335571,80.689,80.66,12.05144699]
[1772287571495,4.23592776,80.692,80.66,12.05144699]
[1772287571700,12.39295584,80.691,80.66,12.05144699]
[1772287571908,4.23592776,80.692,80.66,12.05144699]
[1772287572109,4.23592776,80.689,80.652,12.39894856]
[1772287572401,12.05144699,80.69,80.653,4.15783457]
[1772287572779,12.39222922,80.696,80.661,4.15783457]
[1772287573795,12.39222922,80.696,80.662,12.39741142]
[1772287574188,4.23592776,80.689,80.653,61.5]
[1772287574388,4.23592776,80.689,80.651,4.15783457]
[1772287574603,4.23592776,80.689,80.653,4.15783457]
[1772287574796,12.39222922,80.696,80.66,12.05144699]
[1772287574988,12.05144699,80.69,80.661,145.99536547]
[1772287575589,12.39222922,80.696,80.662,4.15783457]
[1772287575796,12.39222922,80.696,80.663,12.39725772]
[1772287577088,4.23592776,80.714,80.68,12.05144699]
[1772287577291,12.38988489,80.711,80.68,12.05144699]
[1772287577487,4.23592776,80.699,80.664,61.5]
[1772287577703,4.23592776,80.699,80.659,4.15783457]
[1772287577704,12.05144699,80.69,80.659,4.15783457]
[1772287577900,12.39326302,80.689,80.659,4.15783457]
[1772287578704,12.39326302,80.689,80.653,12.39878412]
[1772287578902,12.39326302,80.689,80.653,4.15783457]
[1772287579099,4.23592776,80.688,80.653,4.15783457]
[1772287579294,43.37642057,80.689,80.621,4.15783457]
[1772287579295,12.05144699,80.66,80.621,4.15783457]
[1772287579497,12.05144699,80.66,80.631,4.15783457]
[1772287579909,12.39648931,80.668,80.633,4.15783457]
[1772287580606,12.05144699,80.68,80.641,4.15783457]
[1772287580810,16.6301124,80.683,80.632,43.40708403]
[1772287580811,4.23592776,80.669,80.632,12.40202401]
[1772287581503,4.23592776,80.669,80.633,4.15783457]
[1772287581703,12.39418464,80.683,80.651,4.15783457]
[1772287582009,12.05144699,80.67,80.633,4.15783457]
[1772287582208,4.23592776,80.679,80.641,4.15783457]
[1772287583202,4.23592776,80.669,80.642,145.99536547]
[1772287583603,12.05144699,80.67,80.642,145.99536547]
[1772287584001,12.39633564,80.669,80.642,145.99536547]
[1772287584202,4.23592776,80.659,80.626,4.15783457]
[1772287584402,4.23592776,80.659,80.627,61.5]
[1772287584596,4.23592776,80.659,80.627,73.9027931]
[1772287584908,4.23592776,80.659,80.627,61.5]
[1772287585113,43.38717474,80.669,80.614,4.15783457]
[1772287585114,4.23592776,80.649,80.614,4.15783457]
[1772287585298,12.05144699,80.64,80.608,4.15783457]
[1772287585827,12.05144699,80.63,80.594,4.15783457]
[1772287586126,12.40248545,80.629,80.596,4.15783457]
[1772287586725,24.45386677,80.63,80.596,4.15783457]
[1772287587421,12.05144699,80.62,80.596,4.15783457]
[1772287587620,16.09339755,80.648,80.601,4.15783457]
[1772287587795,4.23592776,80.639,80.601,4.15783457]
[1772287587995,12.40110121,80.638,80.602,12.40664003]
[1772287588226,16.63702897,80.638,80.602,12.40664003]
[1772287588408,4.23592776,80.637,80.602,12.40664003]
[1772287589023,12.05144699,80.62,80.589,12.40864137]
[1772287589224,12.05144699,80.6,80.571,12.41141353]
[1772287589712,12.05144699,80.61,80.572,4.15783457]
[1772287589916,12.05144699,80.61,80.581,4.15783457]
[1772287590119,12.40402386,80.619,80.583,4.15783457]
[1772287590307,16.28737475,80.62,80.583,4.15783457]
[1772287590503,28.69131081,80.62,80.59,12.05144699]
[1772287590703,28.69131081,80.62,80.583,4.15783457]
[1772287590704,4.23592776,80.619,80.583,4.15783457]
[1772287590914,4.23592776,80.619,80.582,12.40971929]
[1772287591119,12.05144699,80.61,80.582,12.40971929]
[1772287591601,4.23592776,80.619,80.583,4.15783457]
[1772287591802,16.28737475,80.61,80.572,4.15783457]
[1772287592208,12.40556265,80.609,80.576,12.4105421]
[1772287592400,12.05144699,80.6,80.573,4.15783457]
[1772287592601,43.41946928,80.609,80.573,4.15783457]
[1772287593419,47.49430089,80.609,80.574,12.41095142]
[1772287593622,12.05144699,80.59,80.57,0.1]
[1772287593826,4.23592776,80.595,80.57,0.1]
[1772287594007,12.05144699,80.59,80.57,0.1]
[1772287594531,4.23592776,80.589,80.57,0.1]
[1772287595013,12.05144699,80.58,80.57,0.1]
[1772287595217,4.23592776,80.589,80.56,0.1]
[1772287595418,4.23592776,80.587,80.56,0.1]
[1772287595820,4.23592776,80.579,80.56,0.1]
[1772287596607,1.53598511,80.623,80.56,0.1]
[1772287596608,4.23592776,80.622,80.571,4.15783457]
[1772287596809,1.53598511,80.623,80.6,12.05144699]
[1772287597026,1.53598511,80.623,80.61,12.05144699]
[1772287597224,1.53598511,80.623,80.6,12.05144699]
[1772287597432,1.53598511,80.623,80.59,12.05144699]
[1772287597634,1.53598511,80.623,80.6,12.05144699]
[1772287597935,4.23592776,80.609,80.561,4.15783457]
[1772287598140,12.05144699,80.6,80.571,4.15783457]
[1772287598709,16.28737475,80.59,80.56,0.1]
[1772287598922,3.69383402,80.609,80.56,0.1]
[1772287598923,12.05144699,80.58,80.56,0.1]
[1772287599931,4.23592776,80.587,80.56,0.1]
[1772287601018,12.05144699,80.58,80.56,0.1]
[1772287601215,4.09667056,80.579,80.56,0.1]
[1772287601932,4.09667056,80.579,80.54,0.1]
[1772287601933,4.09667056,80.579,80.54,12.15144699]
[1772287602232,4.09667056,80.579,80.543,12.41557941]
[1772287602533,4.09667056,80.579,80.55,12.05144699]
[1772287602740,12.40910331,80.586,80.55,12.05144699]
[1772287602911,12.40852168,80.59,80.561,4.14417533]
[1772287603108,35.11530808,80.597,80.562,12.41280007]
[1772287603811,4.09667056,80.597,80.562,16.79981955]
[1772287604012,4.09667056,80.597,80.563,4.38701948]
[1772287604616,4.2332601,80.631,80.581,4.38701948]
[1772287604832,4.2332601,80.631,80.562,12.41280007]